Workbook

Sheet 表3-1 新增地方政府一般债券情况表
A1: 0 | B1: DEBT_T_XXGK_CXZQSY | C1: AND T.AD_CODE_GK=5104 AND T.SET_YEAR_GK=2020 AND T.ZWLB_ID=01 | D1: 债券存续期公开
A2: 0 | B2: AD_CODE_GK#5104 | C2: AD_CODE#5104 | D2: SET_YEAR_GK#2020 | E2: ad_name#5104 攀枝花市 | F2: ZWLB_ID#01
A3: 0 | B3: ZQ_NAME# | C3: ZQ_CODE# | E3: FXGM_AMT# | F3: FX_DATE# | G3: ZQ_RATE# | H3: ZQQX_NAME# | I3: XMZTZ# | J3: XMZTZ_ZQZJ# | K3: XMYTZ# | L3: XMYTZ_ZQZJ# | M3: REMARK# | N3: set_year# | O3: ZQ_ID# | P3: ZQQX_ID#
A4: 0 | B4: 表3-1
A5: 0 | B5: 截至2023年末攀枝花市发行的新增地方政府一般债券情况表
A6: 0 | M6: 单位：亿元
A7: 0 | C7: 债券基本信息 | I7: 债券项目总投资 | K7: 债券项目已实现投资 | M7: 备注
A8: 0 | B8: 债券名称 | C8: 债券编码 | D8: 债券类型 | E8: 债券规模 | F8: 发行时间（年/月/日） | G8: 债券利率(%) | H8: 债券期限 | J8: 其中：债券资金安排 | L8: 其中：债券资金安排
A9: VALID# | B9: 2018年四川省政府一般债券（九期） | C9: 147665 | D9: 一般债券 | E9: =0.617+0.17+0.287 -> 1.07 | F9: 2018-08-20 | G9: 3.95 | H9: 7年 | I9: =0.617+0.52+0.287 -> 1.42 | J9: =0.17+0.217 -> 0.39 | K9: =0.7468+0.23+0.287 -> 1.26 | L9: =0.7468+0.17+0.287 -> 1.20 | N9: 2018 | O9: 734B2C9380AAA8D6E0535EFB480A1B49
A10: VALID# | B10: 2018年四川省政府一般债券（七期） | C10: 1805163 | D10: 一般债券 | E10: =0.1587+0.42 -> 0.58 | F10: 2018-07-26 | G10: 3.84 | H10: 5年 | I10: =0.2616+0.6451 -> 0.91 | J10: =0.2616+0.5562 -> 0.82 | K10: =0.5785+0.4198 -> 1.00 | L10: =0.5785+0.4198 -> 1.00 | N10: 2018 | O10: 71A9A2DF97590782E0535EFB480A82AE
A11: VALID# | B11: 2019年四川省政府一般债券（十期） | C11: 104628 | D11: 一般债券 | E11: =0.0467+0.19 -> 0.24 | F11: 2019-06-03 | G11: 3.58 | H11: 7年 | I11: =0.1627+0.23 -> 0.39 | J11: 0.19 | K11: =0.2342+0.22 -> 0.45 | L11: =0.2342+0.19 -> 0.42 | N11: 2019 | O11: 8A120691BC06CA5BE0535EFB480A5616
A12: VALID# | B12: 2019年四川省政府一般债券（三期） | C12: 104524 | D12: 一般债券 | E12: =0.0233+0.06+0.56 -> 0.64 | F12: 2019-02-25 | G12: 3.38 | H12: 10年 | I12: =0.05+0.08+0.6586 -> 0.79 | J12: =0.06+0.5616 -> 0.62 | K12: =0.6474+0.07+0.5616 -> 1.28 | L12: =0.6474+0.06+0.5616 -> 1.27 | N12: 2019 | O12: 82EE23517C6AE62FE0535EFB480A5EEB
A13: VALID# | B13: 2019年四川省政府一般债券（二期） | C13: 157575 | D13: 一般债券 | E13: =0.24+0.16+0.28 -> 0.68 | F13: 2019-01-29 | G13: 3.38 | H13: 10年 | I13: =0.617+0.66+0.276 -> 1.55 | J13: =0.16+0.276 -> 0.44 | K13: =0.676+0.3+0.276 -> 1.25 | L13: =0.676+0.16+0.276 -> 1.11 | N13: 2019 | O13: 7FF165E1B202EA02E0535EFB480AEC3D
A14: VALID# | B14: 2018年四川省政府一般债券（十期） | C14: 147578 | D14: 一般债券 | E14: =0.2152+0.47+0.37 -> 1.06 | F14: 2018-09-26 | G14: 4.07 | H14: 7年 | I14: =0.4593+0.53+0.3683 -> 1.36 | J14: =0.2616+0.47+0.3683 -> 1.10 | K14: =1.0512+0.51+0.3683 -> 1.93 | L14: =1.0512+0.47+0.3683 -> 1.89 | N14: 2018 | O14: 76AA3943992D94F4E0535EFB480AC43A
A15: VALID# | B15: 2021年四川省政府一般债券(一期) | C15: 2105131 | D15: 一般债券 | E15: =1.07+0.13+0.49 -> 1.69 | F15: 2021-05-10 | G15: 3.38 | H15: 7年 | I15: =11.066+0.39+1.3477 -> 12.80 | J15: =1.07+0.13+0.7909 -> 1.99 | K15: =0.418+0.13 -> 0.55 | L15: =0.418+0.13 -> 0.55 | N15: 2021 | O15: C337430874CA2F7BE0535EFB480A0FD2
A16: VALID# | B16: 2020年四川省政府一般债券（五期） | C16: 160833 | D16: 一般债券 | E16: =0.8614+0.13+0.09 -> 1.08 | F16: 2020-08-10 | G16: 3.82 | H16: 20年 | I16: =1.495347+0.97+1.3835 -> 3.85 | J16: =0.51953+0.13+0.1 -> 0.75 | K16: =1.0849+0.52+0.09 -> 1.69 | L16: =1.0849+0.13+0.09 -> 1.30 | N16: 2020 | O16: ACA9CD9EE8291434E0535EFB480A215D
A17: VALID# | B17: 2021年四川省政府一般债券(二期) | C17: 2105132 | D17: 一般债券 | E17: =0.93+0.11+0.43 -> 1.47 | F17: 2021-05-10 | G17: 3.41 | H17: 10年 | I17: =1.974031+0.83+1.306 -> 4.11 | J17: =0.918375+0.11+0.8407 -> 1.87 | K17: =0.07+0.12 -> 0.19 | L17: =0.07+0.11 -> 0.18 | N17: 2021 | O17: C337430874C42F7BE0535EFB480A0FD2
A18: VALID# | B18: 2020年四川省政府一般债券（四期） | C18: 160832 | D18: 一般债券 | E18: =0.5865+0.12+0.16 -> 0.87 | F18: 2020-08-10 | G18: 3.26 | H18: 7年 | I18: =1.0891034965+1.38+2.2625 -> 4.73 | J18: =0.29856075+0.12+0.3065 -> 0.73 | K18: =0.87+1.22+0.1635 -> 2.25 | L18: =0.87+0.12+0.1635 -> 1.15 | N18: 2020 | O18: ACA9AEEFA4B31537E0535EFB480A2252
A19: VALID# | B19: 2023年四川省政府一般债券（二期） | C19: 2305064 | D19: 一般债券 | E19: =0.0982+0.2036+0.15 -> 0.45 | F19: 2023-01-17 | G19: 2.98 | H19: 10年 | I19: =0.660133+2.66+0.967 -> 4.29 | J19: =0.1177+2.14+0.4854 -> 2.74 | K19: =0.4514+0.2+0.1496 -> 0.80 | L19: =0.4514+0.2+0.1496 -> 0.80 | N19: 2023 | O19: F2701C87E8689793E0535EFB480A0071
A20: VALID# | B20: 2023年四川省政府一般债券（三期） | C20: 198691 | D20: 一般债券 | E20: =0.5236+0.07+0.12 -> 0.71 | F20: 2023-07-07 | G20: 2.73 | H20: 7年 | I20: =68.48+2.54+1.8782 -> 72.90 | J20: =1.508+2.48+1.4865 -> 5.47 | K20: =0.7098+0.07+0.1165 -> 0.90 | L20: =0.7098+0.07+0.1165 -> 0.90 | N20: 2023 | O20: 00190C5D536B4CF0E0635EFB480A4D85
A21: VALID# | B21: 2023年四川省政府一般债券（四期） | C21: 198692 | D21: 一般债券 | E21: =0.2746+0.04+0.06 -> 0.37 | F21: 2023-07-07 | G21: 3.12 | H21: 30年 | I21: =3.637941+2.65+0.332 -> 6.62 | J21: =0.8695+2.56+0.2312 -> 3.66 | K21: =0.3725+0.04+0.0612 -> 0.47 | L21: =0.3725+0.04+0.00612 -> 0.42 | N21: 2023 | O21: 00196D4E2C78873EE0635EFB480A4E2D
A22: VALID# | B22: 2023年四川省政府一般债券（一期） | C22: 2305063 | D22: 一般债券 | E22: =0.7736+0.02 -> 0.79 | F22: 2023-01-17 | G22: 2.96 | H22: 7年 | I22: =69.476141+0.3227 -> 69.80 | J22: =2.3092+0.116 -> 2.43 | K22: =0.7963+0.227 -> 1.02 | L22: =0.7963+0.227 -> 1.02 | N22: 2023 | O22: F271215AE679978FE0535EFB480AFA46
A23: VALID# | B23: 2022年四川省政府一般债券（七期） | C23: 2271358 | D23: 一般债券 | E23: =0.2758+1.15+0.34 -> 1.77 | F23: 2022-06-28 | G23: 2.94 | H23: 10年 | I23: =0.6784+2.12+0.4207 -> 3.22 | J23: =0.2734+1.15+0.0597 -> 1.48 | K23: =1.7536+1.15+0.3397 -> 3.24 | L23: =1.7536+1.15+0.3397 -> 3.24 | N23: 2022 | O23: E204A1B9FDEE042EE0535EFB480A3A42
A24: VALID# | B24: 2019年四川省政府一般债券（五期） | C24: 1905129 | D24: 一般债券 | E24: 0.00 | F24: 2019-03-25 | G24: 3.41 | H24: 7年 | I24: 0.66 | J24: 0.56 | K24: 0.00 | L24: 0.00 | N24: 2019 | O24: 845AE0074A5281C6E0535EFB480AD80B

Sheet 表3-1 新增地方政府专项债券情况表
A1: 0 | B1: DEBT_T_XXGK_CXZQSY | C1: AND T.AD_CODE_GK=5104 AND T.SET_YEAR_GK=2020 AND T.ZWLB_ID=02
A2: 0 | B2: AD_CODE_GK#5104 | C2: AD_CODE#5104 | D2: SET_YEAR_GK#2020 | E2: ad_name#5104 攀枝花市 | F2: ZWLB_ID#02
A3: 0 | B3: ZQ_NAME# | C3: ZQ_CODE# | E3: FXGM_AMT# | F3: FX_DATE# | G3: ZQ_RATE# | H3: ZQQX_NAME# | I3: XMZCLX# | J3: XMZTZ# | K3: XMZTZ_ZQZJ# | L3: XMYTZ# | M3: XMYTZ_ZQZJ# | N3: XMSY# | O3: REMARK# | P3: set_year# | Q3: ZQ_ID# | R3: ZQQX_ID#
A4: 0 | B4: 表3-1
A5: 0 | B5: 截至2023年末攀枝花市发行的新增地方政府专项债券情况表
A6: 0 | O6: 单位：亿元
A7: 0 | C7: 债券基本信息 | I7: 债券项目资产类型 | J7: 债券项目总投资 | L7: 债券项目已实现投资 | N7: 已取得项目收益 | O7: 备注
A8: 0 | B8: 债券名称 | C8: 债券编码 | D8: 债券类型 | E8: 债券规模 | F8: 发行时间（年/月/日） | G8: 债券利率(%) | H8: 债券期限 | K8: 其中：债券资金安排 | M8: 其中：债券资金安排
A9: VALID# | B9: 2019年四川省土地储备专项债券（六期）-2019年四川省政府专项债券（五十五期） | C9: 157687 | D9: 土地储备专项债券 | E9: 1.90 | F9: 2019-05-06 | G9: 3.46 | H9: 5年 | J9: 27.4516 | K9: 18.3000 | L9: 9.7336 | M9: 5.3900 | N9: 0.0000 | P9: 2019 | Q9: 884702538DBAA834E0535EFB480A8296
A10: VALID# | B10: 2018年四川省土地储备专项债券（三期）-2018年四川省政府专项债券（十期） | C10: 1805269 | D10: 土地储备专项债券 | E10: =2.75+2 -> 4.75 | F10: 2018-09-17 | G10: 3.9 | H10: 5年 | J10: =29.858419+3.8784 -> 33.7368 | K10: =16.581509+3 -> 19.5815 | L10: =9.434561+2.21 -> 11.6446 | M10: =7.910021+2.21 -> 10.1200 | N10: 0.0000 | P10: 2018 | Q10: 75AB64A4872B832FE0535EFB480A4BEC
A11: VALID# | B11: 2019年四川省生态环保建设专项债券（三期）-2019年四川省政府专项债券（三十九期） | C11: 1905139 | D11: 普通专项债券 | E11: 0.35 | F11: 2019-03-25 | G11: 3.38 | H11: 10年 | J11: 1.5248 | K11: 0.5500 | L11: 1.3248 | M11: 0.3500 | N11: 0.0000 | P11: 2019 | Q11: 84FABDC0A585EBFCE0535EFB480A4E2B
A12: VALID# | B12: 2018年四川省土地储备专项债券(五期)-2018年四川省政府专项债券（二十三期） | C12: 157511 | D12: 土地储备专项债券 | E12: =2.25+0.21 -> 2.46 | F12: 2018-10-25 | G12: 3.77 | H12: 5年 | J12: =23.3785+3.8784 -> 27.2569 | K12: =13+3 -> 16.0000 | L12: =8.22+2.21 -> 10.4300 | M12: =6.7+2.21 -> 8.9100 | N12: 0.0000 | P12: 2018 | Q12: 77EAE7E15C7594EAE0535EFB480A179C
A13: VALID# | B13: 2018年四川省土地储备专项债券（二期）-2018年四川省政府专项债券（九期） | C13: 1805268 | D13: 土地储备专项债券 | E13: 2.25 | F13: 2018-09-17 | G13: 3.8 | H13: 3年 | J13: 25.1785 | K13: 14.8000 | L13: 10.0200 | M13: 8.5000 | N13: 0.0000 | P13: 2018 | Q13: 760BA25738E282C4E0535EFB480ADCBB
A14: VALID# | B14: 2019年四川省土地储备专项债券（二期）-2019年四川省政府专项债券（二期） | C14: 157577 | D14: 土地储备专项债券 | E14: 1.70 | F14: 2019-01-29 | G14: 3.19 | H14: 5年 | J14: 23.3785 | K14: 13.0000 | L14: 8.2200 | M14: 6.7000 | N14: 0.0000 | P14: 2019 | Q14: 80A875F8D145E9F2E0535EFB480A9762
A15: VALID# | B15: 2019年四川省生态环保建设专项债券（七期）-2019年四川省政府专项债券（八十九期） | C15: 157910 | D15: 普通专项债券 | E15: 1.00 | F15: 2019-07-26 | G15: 3.41 | H15: 10年 | J15: 5.5328 | K15: 2.7500 | L15: 2.7503 | M15: 0.0003 | N15: 0.0000 | P15: 2019 | Q15: 8E64DDBF7A01AFBDE0535EFB480A9C02
A16: VALID# | B16: 2019年四川省工业园区建设专项债券（四期）-2019年四川省政府专项债券（六十五期） | C16: 157697 | D16: 普通专项债券 | E16: 0.70 | F16: 2019-05-06 | G16: 3.99 | H16: 10年 | J16: 1.7119 | K16: 0.7000 | L16: 1.3214 | M16: 0.7000 | N16: 0.0000 | P16: 2019 | Q16: 8844A9E765D3A836E0535EFB480AFA66
A17: VALID# | B17: 2019年四川省土地储备专项债券（五期）-2019年四川省政府专项债券（三十一期） | C17: 1905131 | D17: 土地储备专项债券 | E17: =0.77+0.42 -> 1.19 | F17: 2019-03-25 | G17: 3.31 | H17: 5年 | J17: =20.6697+2 -> 22.6697 | K17: =12.5+2 -> 14.5000 | L17: 6.4517 | M17: 3.0900 | N17: 0.0000 | P17: 2019 | Q17: 84209EEFB0C081C0E0535EFB480AA123
A18: VALID# | B18: 2019年四川省土地储备专项债券（七期）-2019年四川省政府专项债券（九十三期） | C18: 157914 | D18: 土地储备专项债券 | E18: =3.65+0.77 -> 4.42 | F18: 2019-07-26 | G18: 3.25 | H18: 5年 | J18: =26.4707+2 -> 28.4707 | K18: =18.3+2 -> 20.3000 | L18: 8.4518 | M18: 5.0901 | N18: 0.0000 | P18: 2019 | Q18: 8E6A33B21DF2AFC3E0535EFB480A3F2A
A19: VALID# | B19: 2019年四川省土地储备专项债券（三期）-2019年四川省政府专项债券（十九期） | C19: 104527 | D19: 土地储备专项债券 | E19: 0.34 | F19: 2019-02-25 | G19: 2.94 | H19: 3年 | J19: 1.0860 | K19: 1.0815 | L19: 0.1145 | M19: 0.1100 | N19: 0.0000 | P19: 2019 | Q19: 82C3DA212761E809E0535EFB480A7956
A20: VALID# | B20: 2019年四川省土地储备专项债券（五期）-2019年四川省政府专项债券（三十一期）_1 | C20: 1905131_1 | D20: 土地储备专项债券 | E20: =2.28+1.24 -> 3.52 | F20: 2019-03-25 | G20: 3.31 | H20: 5年 | J20: =29.9885+2 -> 31.9885 | K20: =18.99+2 -> 20.9900 | L20: 9.8111 | M20: 5.0400 | N20: 0.0000 | P20: 2019 | Q20: 8409A0AE102081DCE0535EFB480A3740
A21: VALID# | B21: 2021年四川省城乡基础设施建设专项债券（三期）-2021年四川省政府专项债券（五期） | C21: 173714 | D21: 其他领域专项债券 | E21: =0.52+0.4 -> 0.92 | F21: 2021-06-10 | G21: 3.34 | H21: 10年 | J21: =3.4112+1.94 -> 5.3512 | K21: =1.11998+0.9 -> 2.0200 | L21: =0.52+0.4 -> 0.9200 | M21: =0.52+0.4 -> 0.9200 | N21: 0.1000 | P21: 2021 | Q21: C461AB8CF5CB8A7BE0535EFB480A6020
A22: VALID# | B22: 2020年四川省社会事业专项债券（十二期）-2020年四川省政府专项债券（九十六期） | C22: 104925 | D22: 其他领域专项债券 | E22: 0.10 | F22: 2020-09-17 | G22: 3.37 | H22: 10年 | J22: 1.0000 | K22: 0.8000 | L22: 0.3001 | M22: 0.0000 | N22: 0.0000 | P22: 2020 | Q22: AF8E2656897A5974E0535EFB480A2885
A23: VALID# | B23: 2020年四川省工业园区建设专项债券（三期）-2020年四川省政府专项债券（十一期） | C23: 160552 | D23: 普通专项债券 | E23: 0.50 | F23: 2020-01-02 | G23: 3.67 | H23: 15年 | J23: 2.5000 | K23: 1.9000 | L23: 0.1950 | M23: 1.9000 | N23: 0.0000 | P23: 2020 | Q23: 9C161386A0B4A62FE0535EFB480A770D
A24: VALID# | B24: 2021年四川省城乡基础设施建设专项债券（四期）-2021年四川省政府专项债券（六期） | C24: 173715 | D24: 其他领域专项债券 | E24: =0.7+0.35+0.5 -> 1.55 | F24: 2021-06-10 | G24: 3.71 | H24: 15年 | J24: =2.5+1.11+1.4831 -> 5.0931 | K24: =1.9+0.35+0.5 -> 2.7500 | L24: =0.7+0.35 -> 1.0500 | M24: =0.7+0.35 -> 1.0500 | N24: 0.2000 | P24: 2021 | Q24: C42B8152D57B8A97E0535EFB480AD586
A25: VALID# | B25: 2020年四川省社会事业专项债券（五期）-2020年四川省政府专项债券（七十三期） | C25: 160739 | D25: 其他领域专项债券 | E25: =1.45+0.5 -> 1.95 | F25: 2020-05-18 | G25: 2.93 | H25: 10年 | J25: =9.457601+1.54 -> 10.9976 | K25: =4.4+1 -> 5.4000 | L25: =1.3251190462+0.5 -> 1.8251 | M25: =0.350305+0.5 -> 0.8503 | N25: 0.0000 | P25: 2020 | Q25: A6AD0F5607D8AA05E0535EFB480A581A
A26: VALID# | B26: 2020年四川省城乡基础设施建设专项债券（二十三期）-2020年四川省政府专项债券（八十二期） | C26: 2005878 | D26: 其他领域专项债券 | E26: 0.75 | F26: 2020-08-26 | G26: 3.72 | H26: 15年 | J26: 1.6536 | K26: 1.1000 | L26: 0.9467 | M26: 0.0001 | N26: 0.0000 | P26: 2020 | Q26: ADCC4BC8B9646C3CE0535EFB480A07C0
A27: VALID# | B27: 2020年四川省城乡基础设施建设专项债券（十八期）-2020年四川省政府专项债券（六十五期） | C27: 160731 | D27: 其他领域专项债券 | E27: =0.48+0.3 -> 0.78 | F27: 2020-05-18 | G27: 2.93 | H27: 10年 | J27: =20.87208+1.45 -> 22.3221 | K27: =15.61443+0.6 -> 16.2144 | L27: =0.620685351+0.3 -> 0.9207 | M27: =0.6203+0.3 -> 0.9203 | N27: 0.0000 | P27: 2020 | Q27: A6ACE81CFFA6AA09E0535EFB480A27BA
A28: VALID# | B28: 2021年四川省城乡基础设施建设专项债券（八期）-2021年四川省政府专项债券（二十六期） | C28: 173869 | D28: 其他领域专项债券 | E28: =0.38+0.55 -> 0.93 | F28: 2021-10-28 | G28: 3.23 | H28: 10年 | J28: =2.168+3 -> 5.1680 | K28: =0.8+1.65 -> 2.4500 | L28: =0.38+0.95 -> 1.3300 | M28: =0.38+0.55 -> 0.9300 | N28: 0.0000 | P28: 2021 | Q28: CF526C7D4044169BE0535EFB480A6980
A29: VALID# | B29: 2021年四川省城乡基础设施建设专项债券（十五期）-2021年四川省政府专项债券（五十三期） | C29: 2171198 | D29: 其他领域专项债券 | E29: 0.52 | F29: 2021-11-09 | G29: 3.17 | H29: 10年 | J29: 10.1680 | K29: 2.3000 | L29: 0.5200 | M29: 0.5200 | N29: 0.0000 | P29: 2021 | Q29: D058834E0324F7DAE0535EFB480A8656
A30: VALID# | B30: 2021年四川省城乡基础设施建设专项债券（十六期）-2021年四川省政府专项债券（五十四期） | C30: 2171199 | D30: 其他领域专项债券 | E30: 0.20 | F30: 2021-11-09 | G30: 3.5 | H30: 15年 | J30: 2.5000 | K30: 1.9000 | L30: 0.2000 | M30: 0.2000 | N30: 0.0000 | P30: 2021 | Q30: D058834E0373F7DAE0535EFB480A8656
A31: VALID# | B31: 2020年四川省水务建设专项债券（一期）-2020年四川省政府专项债券（十二期） | C31: 160553 | D31: 普通专项债券 | E31: 2.10 | F31: 2020-01-02 | G31: 3.38 | H31: 10年 | J31: 25.7959 | K31: 15.3044 | L31: 3.3222 | M31: 0.5204 | N31: 0.0000 | P31: 2020 | Q31: 9C161865D82DA633E0535EFB480A7318
A32: VALID# | B32: 2020年四川省生态环保建设专项债券（二期）-2020年四川省政府专项债券（十八期） | C32: 160559 | D32: 普通专项债券 | E32: 1.00 | F32: 2020-01-02 | G32: 3.38 | H32: 10年 | J32: 5.5328 | K32: 2.7500 | L32: 2.7503 | M32: 0.0003 | N32: 0.0000 | P32: 2020 | Q32: 9C161865D85DA633E0535EFB480A7318
A33: VALID# | B33: 2020年四川省水务建设专项债券（四期）-2020年四川省政府专项债券（三十九期） | C33: 160631 | D33: 普通专项债券 | E33: 0.32 | F33: 2020-01-10 | G33: 3.38 | H33: 10年 | J33: 18.6679 | K33: 13.8144 | L33: 6.8535 | M33: 0.0003 | N33: 0.0000 | P33: 2020 | Q33: 9C161386A25AA62FE0535EFB480A770D
A34: VALID# | B34: 2020年四川省城乡基础设施建设专项债券（三十二期）-2020年四川省政府专项债券（一百零五期） | C34: 104934 | D34: 其他领域专项债券 | E34: 1.20 | F34: 2020-09-17 | G34: 4.07 | H34: 30年 | J34: 1.5000 | K34: 1.2000 | L34: 1.2100 | M34: 0.0001 | N34: 0.0000 | P34: 2020 | Q34: AF7F94899BC8598CE0535EFB480A183E
A35: VALID# | B35: 2020年四川省城乡基础设施建设专项债券（二十九期）-2020年四川省政府专项债券（一百零二期） | C35: 104931 | D35: 其他领域专项债券 | E35: 1.45 | F35: 2020-09-17 | G35: 3.37 | H35: 10年 | J35: 26.1387 | K35: 15.1808 | L35: 3.4186 | M35: 0.1504 | N35: 0.0000 | P35: 2020 | Q35: AF7F94899A15598AE0535EFB480A18A9
A36: VALID# | B36: 2020年四川省城乡基础设施建设专项债券（二十期）-2020年四川省政府专项债券（六十七期） | C36: 160733 | D36: 其他领域专项债券 | E36: 0.95 | F36: 2020-05-18 | G36: 3.55 | H36: 20年 | J36: 6.4110 | K36: 2.8500 | L36: 1.1001 | M36: 1.1001 | N36: 0.0000 | P36: 2020 | Q36: A69DE03FA7B97AE3E0535EFB480A3815
A37: VALID# | B37: 2020年四川省城乡基础设施建设专项债券六期-2020年四川省政府专项债券（二十六期） | C37: 160618 | D37: 普通专项债券 | E37: 1.40 | F37: 2020-01-10 | G37: 3.67 | H37: 15年 | J37: 14.3931 | K37: 14.3931 | L37: 2.8800 | M37: 0.0003 | N37: 0.0000 | P37: 2020 | Q37: 9C16A8B5893DA784E0535EFB480A7450
A38: VALID# | B38: 2020年四川省生态环保建设专项债券（三期）-2020年四川省政府专项债券（十九期） | C38: 160560 | D38: 普通专项债券 | E38: 0.30 | F38: 2020-01-02 | G38: 3.67 | H38: 15年 | J38: 1.1400 | K38: 1.0468 | L38: 0.0932 | M38: 0.0000 | N38: 0.0000 | P38: 2020 | Q38: 9C16133CBC0AA631E0535EFB480ACA04
A39: VALID# | B39: 2020年四川省城乡基础设施建设专项债券（十九期）-2020年四川省政府专项债券（六十六期） | C39: 160732 | D39: 其他领域专项债券 | E39: 5.11 | F39: 2020-05-18 | G39: 3.43 | H39: 15年 | J39: 51.8931 | K39: 36.2931 | L39: 11.0403 | M39: 10.9903 | N39: 0.0000 | P39: 2020 | Q39: A676D8485F84E9EDE0535EFB480A491B
A40: VALID# | B40: 2020年四川省城乡基础设施建设专项债券（三十期）-2020年四川省政府专项债券（一百零三期） | C40: 104932 | D40: 其他领域专项债券 | E40: =2.33+0.52 -> 2.85 | F40: 2020-09-17 | G40: 3.82 | H40: 15年 | J40: =50.106155+0.7631 -> 50.8693 | K40: =33.281687+0.52 -> 33.8017 | L40: =12.00904202+0.52 -> 12.5290 | M40: =12.009042+0.52 -> 12.5290 | N40: 0.0000 | P40: 2020 | Q40: AF7FBDC4A9CA6D2BE0535EFB480A26A1
A41: VALID# | B41: 2022年四川省城乡基础设施建设专项债券（十五期）-2022年四川省政府专项债券（七十一期） | C41: 2271776 | D41: 其他领域专项债券 | E41: =2.35+0.18 -> 2.53 | F41: 2022-10-17 | G41: 2.88 | H41: 10年 | J41: =12.414049+2.65 -> 15.0640 | K41: =6.37+1.2 -> 7.5700 | L41: =2.53+0.72 -> 3.2500 | M41: =2.53+0.18 -> 2.7100 | N41: 0.0000 | P41: 2022 | Q41: EB3755C5AF155519E0535EFB480A3C2A
A42: VALID# | B42: 2023年四川省城乡基础设施建设专项债券（三期）-2023年四川省政府专项债券（三期） | C42: 2305067 | D42: 其他领域专项债券 | E42: 0.45 | F42: 2023-01-17 | G42: 2.98 | H42: 10年 | J42: 2.24 | K42: 1.09 | L42: 0.45 | M42: 0.45 | N42: 0.00 | P42: 2023 | Q42: F2701C2922079799E0535EFB480A4D48
A43: VALID# | B43: 2023年四川省城乡基础设施建设专项债券（二十二期）-2023年四川省政府专项债券（二十二期） | C43: 198230 | D43: 其他领域专项债券 | E43: 0.15 | F43: 2023-04-28 | G43: 2.91 | H43: 10年 | J43: 1.50 | K43: 1.00 | L43: 0.15 | M43: 0.15 | N43: 0.00 | P43: 2023 | Q43: F90BA359CBDC65F4E0535EFB480AAB8D
A44: VALID# | B44: 2023年四川省城乡基础设施建设专项债券（三十七期）-2023年四川省政府专项债券（三十八期） | C44: 2305937 | D44: 其他领域专项债券 | E44: =0.3+1.4+1.6 -> 3.30 | F44: 2023-08-15 | G44: 3 | H44: 20年 | J44: =1+3.9+26.5446 -> 31.44 | K44: =0.5+3.4+16.4 -> 20.30 | L44: =3.06984498+1.4+1.3698 -> 5.84 | M44: =3.06984498+1.4+1.3698 -> 5.84 | N44: 0.00 | P44: 2023 | Q44: 02F2A3A99CB699BAE0635EFB480A6CEF
A45: VALID# | B45: 2023年四川省城乡基础设施建设专项债券（三十五期）-2023年四川省政府专项债券（三十六期） | C45: 2305935 | D45: 其他领域专项债券 | E45: 0.79 | F45: 2023-08-15 | G45: 2.74 | H45: 10年 | J45: 3.58 | K45: 2.19 | L45: 0.74 | M45: 0.74 | N45: 0.00 | P45: 2023 | Q45: 02F2EB6D4FB9CFAAE0635EFB480A5F27
A46: VALID# | B46: 2022年四川省城乡基础设施建设专项债券（三期）-2022年四川省政府专项债券（六期） | C46: 2205155 | D46: 其他领域专项债券 | E46: 0.50 | F46: 2022-01-27 | G46: 3.25 | H46: 20年 | J46: 5.3939 | K46: 2.5000 | L46: 0.5000 | M46: 0.5000 | N46: 0.0000 | P46: 2022 | Q46: D67CD27B30D56E4BE0535EFB480A234B
A47: VALID# | B47: 2023年四川省城乡基础设施建设专项债券（十六期）-2023年四川省政府专项债券（十六期） | C47: 2305324 | D47: 其他领域专项债券 | E47: 0.15 | F47: 2023-03-31 | G47: 3.1 | H47: 15年 | J47: 18.22 | K47: 13.43 | L47: 0.15 | M47: 0.15 | N47: 0.00 | P47: 2023 | Q47: F8F6B24A1BD23F8CE0535EFB480A6FAC
A48: VALID# | B48: 2022年四川省城市更新和产业升级基础设施专项债券（四期）—2022年四川省政府专项债券（五十一期） | C48: 2271130 | D48: 其他领域专项债券 | E48: 1.46 | F48: 2022-06-13 | G48: 3.21 | H48: 15年 | J48: 35.0000 | K48: 20.0000 | L48: 1.4600 | M48: 1.4600 | N48: 0.0000 | P48: 2022 | Q48: E06EC60B8CB36E76E0535EFB480AF66C
A49: VALID# | B49: 2022年四川省社会事业和交通基础设施专项债券（一期）—2022年四川省政府专项债券（四十五期） | C49: 2271124 | D49: 其他领域专项债券 | E49: =0.98+0.72 -> 1.70 | F49: 2022-06-13 | G49: 2.91 | H49: 10年 | J49: =5.00418+2.64 -> 7.6442 | K49: =4+1.82 -> 5.8200 | L49: =1.7+1.22 -> 2.9200 | M49: =1.7+0.72 -> 2.4200 | N49: 0.0000 | P49: 2022 | Q49: E06F7CAE0EE36D98E0535EFB480A5EFF
A50: VALID# | B50: 2023年四川省城乡基础设施建设专项债券（十七期）-2023年四川省政府专项债券（十七期） | C50: 2305325 | D50: 其他领域专项债券 | E50: 0.20 | F50: 2023-03-31 | G50: 3.17 | H50: 20年 | J50: 1.05 | K50: 0.55 | L50: 0.20 | M50: 0.20 | N50: 0.00 | P50: 2023 | Q50: F8F6B24A1C2A3F8CE0535EFB480A6FAC
A51: VALID# | B51: 2023年四川省城乡基础设施建设专项债券（十五期）-2023年四川省政府专项债券（十五期） | C51: 2305323 | D51: 其他领域专项债券 | E51: 0.10 | F51: 2023-03-31 | G51: 2.96 | H51: 10年 | J51: 0.27 | K51: 0.10 | L51: 0.10 | M51: 0.10 | N51: 0.00 | P51: 2023 | Q51: F8F66E19F40E0CF7E0535EFB480AAC8A
A52: VALID# | B52: 2023年四川省城乡基础设施建设专项债券（三十六期）-2023年四川省政府专项债券（三十七期） | C52: 2305936 | D52: 其他领域专项债券 | E52: =2.234+0.6 -> 2.83 | F52: 2023-08-15 | G52: 2.92 | H52: 15年 | J52: =26.093891+1.87 -> 27.96 | K52: =17.641345+1.2 -> 18.84 | L52: =2.534+0.6 -> 3.13 | M52: =2.534+0.6 -> 3.13 | N52: 0.00 | P52: 2023 | Q52: 02F31E709A1EF535E0635EFB480A2747
A53: VALID# | B53: 2023年四川省城乡基础设施建设专项债券（二十八期）-2023年四川省政府专项债券（二十九期） | C53: 2305782 | D53: 其他领域专项债券 | E53: =0.65+0.44 -> 1.09 | F53: 2023-07-20 | G53: 2.73 | H53: 10年 | J53: =2.9614+6.09 -> 9.05 | K53: =1.7916+3.2 -> 4.99 | L53: =1.07591+0.44 -> 1.52 | M53: =1.07591+0.44 -> 1.52 | N53: 0.00 | P53: 2023 | Q53: 01368A780005260AE0635EFB480A026C
A54: VALID# | B54: 2023年四川省城乡基础设施建设专项债券（四期）-2023年四川省政府专项债券（四期） | C54: 2305068 | D54: 其他领域专项债券 | E54: 0.30 | F54: 2023-01-17 | G54: 3.12 | H54: 15年 | J54: 14.39 | K54: 11.51 | L54: 0.30 | M54: 0.30 | N54: 0.00 | P54: 2023 | Q54: F2701C457F5C9797E0535EFB480AA111
A55: VALID# | B55: 2022年四川省城乡基础设施建设专项债券（一期）-2022年四川省政府专项债券（四期） | C55: 2205153 | D55: 其他领域专项债券 | E55: 0.08 | F55: 2022-01-27 | G55: 2.85 | H55: 10年 | J55: 2.5691 | K55: 1.4130 | L55: 0.0800 | M55: 0.0800 | N55: 0.0000 | P55: 2022 | Q55: D67CD27B817E6E2FE0535EFB480A9059
A56: VALID# | B56: 2023年四川省城乡基础设施建设专项债券（二十九期）-2023年四川省政府专项债券（三十期） | C56: 2305783 | D56: 其他领域专项债券 | E56: =1.566+0.1+0.15 -> 1.82 | F56: 2023-07-20 | G56: 2.93 | H56: 15年 | J56: =23.20261+1.87+1 -> 26.07 | K56: =16.089055+1.2+0.5 -> 17.79 | L56: =1.72349+0.1+0.15 -> 1.97 | M56: =1.72349+0.1+0.15 -> 1.97 | N56: 0.00 | P56: 2023 | Q56: 014E2D9F76C96868E0635EFB480A8860
A57: VALID# | B57: 2022年四川省城乡基础设施建设专项债券（九期）-2022年四川省政府专项债券（二十五期） | C57: 2205229 | D57: 其他领域专项债券 | E57: 1.50 | F57: 2022-02-18 | G57: 3.26 | H57: 15年 | J57: 14.3932 | K57: 11.5146 | L57: 1.5000 | M57: 1.5000 | N57: 0.0000 | P57: 2022 | Q57: D87FB93CA1433971E0535EFB480A59D2
A58: VALID# | B58: 2023年四川省城乡基础设施建设专项债券（十一期）-2023年四川省政府专项债券（十一期） | C58: 101947 | D58: 其他领域专项债券 | E58: =0.39+0.2 -> 0.59 | F58: 2023-02-27 | G58: 3.16 | H58: 15年 | J58: =2.85+0.28 -> 3.13 | K58: =1+0.2 -> 1.20 | L58: =0.53528+0.1453 -> 0.68 | M58: =0.53528+0.1453 -> 0.68 | N58: 0.00 | P58: 2023 | Q58: F5BF40144E5A805EE0535EFB480A1C48
A59: VALID# | B59: 2022年四川省乡村振兴和水利建设专项债券（一期）—2022年四川省政府专项债券（四十二期） | C59: 2271121 | D59: 其他领域专项债券 | E59: =0.12+0.3 -> 0.42 | F59: 2022-06-13 | G59: 2.91 | H59: 10年 | J59: =4.134049+2.65 -> 6.7840 | K59: =0.87+1.2 -> 2.0700 | L59: =0.42+0.72 -> 1.1400 | M59: =0.42+0.3 -> 0.7200 | N59: 0.0000 | P59: 2022 | Q59: E06EC612C84D6E74E0535EFB480A2439
A60: VALID# | B60: 2022年四川省城乡基础设施建设专项债券（十六期）-2022年四川省政府专项债券（七十二期） | C60: 2271777 | D60: 其他领域专项债券 | E60: 3.63 | F60: 2022-10-17 | G60: 3.06 | H60: 15年 | J60: 35.0000 | K60: 20.0000 | L60: 3.6300 | M60: 3.6300 | N60: 0.0000 | P60: 2022 | Q60: EB37B8F0E79589D8E0535EFB480A4207
A61: VALID# | B61: 2022年四川省城市更新和产业升级基础设施专项债券（三期）—2022年四川省政府专项债券（五十期） | C61: 2271129 | D61: 其他领域专项债券 | E61: 0.30 | F61: 2022-06-13 | G61: 2.91 | H61: 10年 | J61: 2.9353 | K61: 1.2885 | L61: 0.3000 | M61: 0.3000 | N61: 0.0000 | P61: 2022 | Q61: E10E6A128EC26D80E0535EFB480A694A
A62: VALID# | B62: 2022年四川省社会事业和交通基础设施专项债券（五期）—2022年四川省政府专项债券（五十八期） | C62: 2271171 | D62: 其他领域专项债券 | E62: 0.15 | F62: 2022-06-16 | G62: 2.92 | H62: 10年 | J62: 0.8800 | K62: 0.5000 | L62: 0.1500 | M62: 0.1500 | N62: 0.0000 | P62: 2022 | Q62: E173CFE4909E0502E0535EFB480A0202
B63: 2023年四川省城乡基础设施建设专项债券（十二期）-2023年四川省政府专项债券（十二期） | C63: 101948 | D63: 其他领域专项债券 | E63: =1.281+0.9 -> 2.18 | F63: 2023-02-27 | G63: 3.24 | H63: 20年 | J63: =7.26+2.4 -> 9.66 | K63: =5.6+1.2 -> 6.80 | L63: =1.281+0.7 -> 1.98 | M63: =1.281+0.7 -> 1.98 | N63: 0.00
B64: 2023年四川省城乡基础设施建设专项债券（五期）-2023年四川省政府专项债券（五期） | C64: 2305069 | D64: 其他领域专项债券 | E64: =0.819+0.3 -> 1.12 | F64: 2023-01-17 | G64: 3.19 | H64: 20年 | J64: =8.32+2.4 -> 10.72 | K64: =6.48+1.2 -> 7.68 | L64: =0.819+0.3 -> 1.12 | M64: =0.819+0.3 -> 1.12 | N64: 0.00
B65: 2023年四川省城乡基础设施建设专项债券（十期）-2023年四川省政府专项债券（十期） | C65: 101946 | D65: 其他领域专项债券 | E65: 0.63 | F65: 2023-02-27 | G65: 3.02 | H65: 10年 | J65: 5.65 | K65: 2.85 | L65: 0.63 | M65: 0.63 | N65: 0.00
B66: 2023年四川省城乡基础设施建设专项债券（三十期）-2023年四川省政府专项债券（三十一期） | C66: 2305784 | D66: 其他领域专项债券 | E66: =0.9+2.34 -> 3.24 | F66: 2023-07-20 | G66: 3.11 | H66: 20年 | J66: =5.76+26.5446 -> 32.30 | K66: =4.4+16.4 -> 20.80 | L66: =0.9+2.35 -> 3.25 | M66: =0.9+2.35 -> 3.25 | N66: 0.00
B67: 2019年四川省棚户区改造专项债券（七期）-2019年四川省政府专项债券（六十一期） | C67: 157693 | D67: 棚改专项债券 | E67: 1.00 | F67: 2019-05-06 | G67: 3.46 | H67: 5年 | J67: 5.40 | K67: 1.00 | L67: 3.47 | M67: 1.00 | N67: 0.74
B68: 2019年四川省棚户区改造专项债券（十一期）-2019年四川省政府专项债券（九十四期） | C68: 157915 | D68: 棚改专项债券 | E68: 1.00 | F68: 2019-07-26 | G68: 3.25 | H68: 5年 | J68: 5.24 | K68: 1.00 | L68: 2.86 | M68: 1.00
B69: 2021年四川省棚户区改造专项债券（一期）-2021年四川省政府专项债券（十期） | C69: 173719 | D69: 棚改专项债券 | E69: 1.25 | F69: 2021-06-10 | G69: 3.23 | H69: 5年 | J69: 10.57 | K69: 4.54 | L69: 2.54 | M69: 1.25
B70: 2021年四川省棚户区改造专项债券（六期）-2021年四川省政府专项债券（三十五期） | C70: 2171180 | D70: 棚改专项债券 | E70: 0.89 | F70: 2021-11-09 | G70: 3.02 | H70: 5年 | J70: 10.57 | K70: 4.54 | L70: 2.54 | M70: 0.89
B71: 2022年四川省城市更新和产业升级基础设施专项债券（七期）—2022年四川省政府专项债券（六十三期） | C71: 2271176 | D71: 棚改专项债券 | E71: 0.14 | F71: 2022-06-16 | G71: 2.74 | H71: 5年 | J71: 10.57 | K71: 4.54 | L71: 2.54 | M71: 0.14
B72: 2022年四川省棚户区改造专项债券（一期）-2022年四川省政府专项债券（九期） | C72: 2205158 | D72: 棚改专项债券 | E72: 0.26 | F72: 2022-01-27 | G72: 2.57 | H72: 5年 | J72: 10.57 | K72: 4.54 | L72: 2.54 | M72: 0.26
B73: 2022年四川省城市更新和产业升级基础设施专项债券（五期）—2022年四川省政府专项债券（五十二期） | C73: 2271131 | D73: 其他自平衡专项债券 | E73: =0.475+0.24 -> 0.72 | F73: 2022-06-13 | G73: 3.27 | H73: 20年 | J73: =2.5+9.3596 -> 11.86 | K73: =1.1+6 -> 7.10 | L73: =0.595+0.24 -> 0.84 | M73: =0.475+0.24 -> 0.72 | N73: 0.00
B74: 2022年四川省乡村振兴和水利建设专项债券（六期）—2022年四川省政府专项债券（五十六期） | C74: 2271169 | D74: 其他自平衡专项债券 | E74: 0.60 | F74: 2022-06-16 | G74: 3.22 | H74: 15年 | J74: 0.75 | K74: 0.60 | L74: 0.60 | M74: 0.60 | N74: 0.00
B75: 2022年四川省城乡基础设施建设专项债券（十七期）-2022年四川省政府专项债券（七十三期） | C75: 2271778 | D75: 其他自平衡专项债券 | E75: =0.12+0.5 -> 0.62 | F75: 2022-10-17 | G75: 3.14 | H75: 20年 | J75: =2.5+43.188 -> 45.69 | K75: =1.1+3.4 -> 4.50 | L75: =0.595+0.5 -> 1.10 | M75: =0.12+0.5 -> 0.62 | N75: 0.00
B76: 2021年四川省城乡基础设施建设专项债券（十期）-2021年四川省政府专项债券（二十八期） | C76: 173871 | D76: 其他领域专项债券 | E76: 1.18 | F76: 2021-10-28 | G76: 3.62 | H76: 20年 | J76: 10.6308 | K76: 7.0000 | L76: 0.0000 | M76: 0.0000 | N76: 0.0000 | P76: 2021 | Q76: CF526C7D40E9169BE0535EFB480A6980
B77: 2021年四川省城乡基础设施建设专项债券（五期）-2021年四川省政府专项债券（七期） | C77: 173716 | D77: 其他领域专项债券 | E77: 1.50 | F77: 2021-06-10 | G77: 3.83 | H77: 20年 | J77: 9.3596 | K77: 6.0000 | L77: 0.0000 | M77: 0.0000 | N77: 0.0000 | P77: 2021 | Q77: C42B8152D57D8A97E0535EFB480AD586
A78: VALID# | B78: 2023年四川省城乡基础设施建设专项债券（二十三期）-2023年四川省政府专项债券（二十三期） | C78: 198231 | D78: 其他领域专项债券 | E78: 0.17 | F78: 2023-04-28 | G78: 3.06 | H78: 15年 | J78: 1.0000 | K78: 0.5000 | L78: 0.1700 | M78: 0.1700 | N78: 0.0000 | P78: 2023 | Q78: F92F55DBF2CA65D8E0535EFB480A886C
A79: VALID# | B79: 2022年四川省社会事业和交通基础设施专项债券（三期）—2022年四川省政府专项债券（四十七期） | C79: 2271126 | D79: 其他领域专项债券 | E79: 0.40 | F79: 2022-06-13 | G79: 3.27 | H79: 20年 | J79: 4.3188 | K79: 3.4000 | L79: 0.4000 | M79: 0.4000 | N79: 0.0000 | P79: 2022 | Q79: E06F7CAE0F056D98E0535EFB480A5EFF
A80: VALID# | B80: 2023年四川省城乡基础设施建设专项债券（二十四期）-2023年四川省政府专项债券（二十四期） | C80: 198232 | D80: 其他领域专项债券 | E80: 0.50 | F80: 2023-04-28 | G80: 3.12 | H80: 20年 | J80: 9.3596 | K80: 6.0000 | L80: 0.5000 | M80: 0.5000 | N80: 0.0000 | P80: 2023 | Q80: F90BA359CBE165F4E0535EFB480AAB8D
A81: VALID# | B81: 2022年四川省城乡基础设施建设专项债券（十期）-2022年四川省政府专项债券（二十六期） | C81: 2205230 | D81: 其他领域专项债券 | E81: 0.90 | F81: 2022-02-18 | G81: 3.31 | H81: 20年 | J81: 14.9496 | K81: 10.4000 | L81: 0.9000 | M81: 0.9000 | N81: 0.0000 | P81: 2022 | Q81: D87F8EB57AF02023E0535EFB480A3995

Sheet 表3-2 新增地方政府一般债券资金收支情况表
A1: 0 | B1: DEBT_T_XXGK_CXSRZC | C1: AND T.AD_CODE_GK=5104 AND T.SET_YEAR_GK=2020 AND T.ZWLB_ID='01'
A2: 0 | B2: AD_CODE_GK#5104 | C2: AD_CODE#5104 | D2: SET_YEAR_GK#2020 | E2: AD_NAME#5104 攀枝花市 | F2: SET_YEAR#2020 | G2: ZWLB_ID#01
A3: 0 | C3: ZQ_NAME# | D3: SR_AMT# | E3: GNFL_NAME# | F3: ZC_AMT# | G3: GNFL_CODE# | H3: GNFL_CODE#
A4: 0 | B4: 表3-2
A5: 0 | B5: 截至2023年末攀枝花市发行的新增地方政府一般债券资金收支情况表
A6: 0 | F6: 单位：亿元
A7: 0 | B7: 序号 | C7: 2023年末新增一般债券资金收入 | E7: 2023年末新增一般债券资金安排的支出
A8: 0 | C8: 债券名称 | D8: 金额 | E8: 支出功能分类 | F8: 金额
A9: 0 | B9: 合计 | D9: =SUM(D10:D24) -> 13.48 | F9: =SUM(F10:F19) -> 13.48
A10: VALID# | B10: 1 | C10: 2018年四川省政府一般债券（九期） | D10: =0.617+0.17+0.287 -> 1.07 | E10: 205教育支出 | F10: 1.28 | G10: 205 | H10: 205
A11: VALID# | B11: 2 | C11: 2018年四川省政府一般债券（七期） | D11: =0.1587+0.42 -> 0.58 | E11: 212城乡社区支出 | F11: =1.43+0.29 -> 1.72 | G11: 212 | H11: 212
A12: VALID# | B12: 3 | C12: 2019年四川省政府一般债券（十期） | D12: =0.0467+0.19 -> 0.24 | E12: 213农林水支出 | F12: 4.58 | G12: 213 | H12: 213
A13: VALID# | B13: 4 | C13: 2019年四川省政府一般债券（三期） | D13: =0.0233+0.06+0.56 -> 0.64 | E13: 211节能环保支出 | F13: 0.60
A14: VALID# | B14: 5 | C14: 2019年四川省政府一般债券（二期） | D14: =0.24+0.16+0.28 -> 0.68 | E14: 214交通运输支出 | F14: 0.96
A15: VALID# | B15: 6 | C15: 2018年四川省政府一般债券（十期） | D15: =0.2152+0.47+0.37 -> 1.06 | E15: 216商业服务业等支出 | F15: 0.15
A16: VALID# | B16: 7 | C16: 2021年四川省政府一般债券(一期) | D16: =1.07+0.13+0.49 -> 1.69 | E16: 224灾害防治及应急管理支出 | F16: 0.56 | G16: 205 | H16: 205
A17: VALID# | B17: 8 | C17: 2020年四川省政府一般债券（五期） | D17: =0.8614+0.13+0.09 -> 1.08 | E17: 230转移性支出 | F17: =0.9876+1.51 -> 2.50 | G17: 211 | H17: 211
A18: VALID# | B18: 9 | C18: 2021年四川省政府一般债券(二期) | D18: =0.93+0.11+0.43 -> 1.47 | E18: 207文化旅游体育与传媒支出 | F18: 0.06 | G18: 212 | H18: 212
A19: VALID# | B19: 10 | C19: 2020年四川省政府一般债券（四期） | D19: =0.5865+0.12+0.16 -> 0.87 | E19: 204公共安全支出 | F19: =0.16+0.92 -> 1.08 | G19: 213 | H19: 213
A20: VALID# | B20: 11 | C20: 2023年四川省政府一般债券（二期） | D20: =0.0982+0.2036+0.15 -> 0.45 | E20: 222粮油物资储备支出 | F20: 0.15 | G20: 214 | H20: 214
A21: VALID# | B21: 12 | C21: 2023年四川省政府一般债券（三期） | D21: =0.5236+0.07+0.12 -> 0.71 | E21: 210卫生健康支出 | F21: 0.01 | G21: 216 | H21: 216
A22: VALID# | B22: 13 | C22: 2023年四川省政府一般债券（四期） | D22: =0.2746+0.04+0.06 -> 0.37 | G22: 224 | H22: 224
A23: VALID# | B23: 14 | C23: 2023年四川省政府一般债券（一期） | D23: =0.7736+0.02 -> 0.79 | G23: 205 | H23: 205
A24: VALID# | B24: 15 | C24: 2022年四川省政府一般债券（七期） | D24: =0.2758+1.15+0.34 -> 1.77 | G24: 212 | H24: 212
B25: 16 | C25: 2019年四川省政府一般债券（五期） | D25: 0.00

Sheet 表3-2 新增地方政府专项债券资金收支情况表
A1: 0 | B1: DEBT_T_XXGK_CXSRZC | C1: AND T.AD_CODE_GK=5104 AND T.SET_YEAR_GK=2020 AND T.ZWLB_ID='02'
A2: 0 | B2: AD_CODE_GK#5104 | C2: AD_CODE#5104 | D2: SET_YEAR_GK#2020 | E2: AD_NAME#5104 攀枝花市 | F2: SET_YEAR#2020 | G2: ZWLB_ID#02
A3: 0 | C3: ZQ_NAME# | D3: SR_AMT# | E3: GNFL_NAME# | F3: ZC_AMT# | G3: GNFL_CODE#
A4: 0 | B4: 表3-2
A5: 0 | B5: 截至2023年末攀枝花市发行的新增地方政府专项债券资金收支情况表
A6: 0 | F6: 单位：亿元
A7: 0 | B7: 序号 | C7: 2023年末新增专项债券资金收入 | E7: 2023年末新增专项债券资金安排的支出
A8: 0 | C8: 债券名称 | D8: 金额 | E8: 支出功能分类 | F8: 金额
A9: 0 | B9: 合计 | D9: =SUM(D10:D82) -> 91.79 | F9: =SUM(F10:F14) -> 91.31
A10: VALID# | B10: 1 | C10: 2019年四川省土地储备专项债券（六期）-2019年四川省政府专项债券（五十五期） | D10: 1.90 | E10: 212城乡社区支出 | F10: 50.62 | G10: 212
A11: VALID# | B11: 2 | C11: 2018年四川省土地储备专项债券（三期）-2018年四川省政府专项债券（十期） | D11: =2.75+2 -> 4.75 | E11: 213农林水支出 | F11: 0.59
A12: VALID# | B12: 3 | C12: 2019年四川省生态环保建设专项债券（三期）-2019年四川省政府专项债券（三十九期） | D12: 0.35 | E12: 229其他支出 | F12: =30.4+3.18 -> 33.58
A13: VALID# | B13: 4 | C13: 2018年四川省土地储备专项债券(五期)-2018年四川省政府专项债券（二十三期） | D13: =2.25+0.21 -> 2.46 | E13: 210卫生健康支出 | F13: 0.40
A14: VALID# | B14: 5 | C14: 2018年四川省土地储备专项债券（二期）-2018年四川省政府专项债券（九期） | D14: 2.25 | E14: 230转移性支出 | F14: 6.12
A15: VALID# | B15: 6 | C15: 2019年四川省土地储备专项债券（二期）-2019年四川省政府专项债券（二期） | D15: 1.70
A16: VALID# | B16: 7 | C16: 2019年四川省生态环保建设专项债券（七期）-2019年四川省政府专项债券（八十九期） | D16: 1.00
A17: VALID# | B17: 8 | C17: 2019年四川省工业园区建设专项债券（四期）-2019年四川省政府专项债券（六十五期） | D17: 0.70
A18: VALID# | B18: 9 | C18: 2019年四川省土地储备专项债券（五期）-2019年四川省政府专项债券（三十一期） | D18: =0.77+0.42 -> 1.19
A19: VALID# | B19: 10 | C19: 2019年四川省土地储备专项债券（七期）-2019年四川省政府专项债券（九十三期） | D19: =3.65+0.77 -> 4.42
A20: VALID# | B20: 11 | C20: 2019年四川省土地储备专项债券（三期）-2019年四川省政府专项债券（十九期） | D20: 0.34
A21: VALID# | B21: 12 | C21: 2019年四川省土地储备专项债券（五期）-2019年四川省政府专项债券（三十一期）_1 | D21: =2.28+1.24 -> 3.52
A22: VALID# | B22: 13 | C22: 2021年四川省城乡基础设施建设专项债券（三期）-2021年四川省政府专项债券（五期） | D22: =0.52+0.4 -> 0.92 | G22: 212
A23: VALID# | B23: 14 | C23: 2020年四川省社会事业专项债券（十二期）-2020年四川省政府专项债券（九十六期） | D23: 0.10 | G23: 213
A24: VALID# | B24: 15 | C24: 2020年四川省工业园区建设专项债券（三期）-2020年四川省政府专项债券（十一期） | D24: 0.50 | G24: 229
A25: VALID# | B25: 16 | C25: 2021年四川省城乡基础设施建设专项债券（四期）-2021年四川省政府专项债券（六期） | D25: =0.7+0.35+0.5 -> 1.55
A26: VALID# | B26: 17 | C26: 2020年四川省社会事业专项债券（五期）-2020年四川省政府专项债券（七十三期） | D26: =1.45+0.5 -> 1.95
A27: VALID# | B27: 18 | C27: 2020年四川省城乡基础设施建设专项债券（二十三期）-2020年四川省政府专项债券（八十二期） | D27: 0.75
A28: VALID# | B28: 19 | C28: 2020年四川省城乡基础设施建设专项债券（十八期）-2020年四川省政府专项债券（六十五期） | D28: =0.48+0.3 -> 0.78
A29: VALID# | B29: 20 | C29: 2021年四川省城乡基础设施建设专项债券（八期）-2021年四川省政府专项债券（二十六期） | D29: =0.38+0.55 -> 0.93
A30: VALID# | B30: 21 | C30: 2021年四川省城乡基础设施建设专项债券（十五期）-2021年四川省政府专项债券（五十三期） | D30: 0.52
A31: VALID# | B31: 22 | C31: 2021年四川省城乡基础设施建设专项债券（十六期）-2021年四川省政府专项债券（五十四期） | D31: 0.20
A32: VALID# | B32: 23 | C32: 2020年四川省水务建设专项债券（一期）-2020年四川省政府专项债券（十二期） | D32: 2.10
A33: VALID# | B33: 24 | C33: 2020年四川省生态环保建设专项债券（二期）-2020年四川省政府专项债券（十八期） | D33: 1.00
A34: VALID# | B34: 25 | C34: 2020年四川省水务建设专项债券（四期）-2020年四川省政府专项债券（三十九期） | D34: 0.32
A35: VALID# | B35: 26 | C35: 2020年四川省城乡基础设施建设专项债券（三十二期）-2020年四川省政府专项债券（一百零五期） | D35: 1.20
A36: VALID# | B36: 27 | C36: 2020年四川省城乡基础设施建设专项债券（二十九期）-2020年四川省政府专项债券（一百零二期） | D36: 1.45
A37: VALID# | B37: 28 | C37: 2020年四川省城乡基础设施建设专项债券（二十期）-2020年四川省政府专项债券（六十七期） | D37: 0.95
A38: VALID# | B38: 29 | C38: 2020年四川省城乡基础设施建设专项债券六期-2020年四川省政府专项债券（二十六期） | D38: 1.40
A39: VALID# | B39: 30 | C39: 2020年四川省生态环保建设专项债券（三期）-2020年四川省政府专项债券（十九期） | D39: 0.30
A40: VALID# | B40: 31 | C40: 2020年四川省城乡基础设施建设专项债券（十九期）-2020年四川省政府专项债券（六十六期） | D40: 5.11
A41: VALID# | B41: 32 | C41: 2020年四川省城乡基础设施建设专项债券（三十期）-2020年四川省政府专项债券（一百零三期） | D41: =2.33+0.52 -> 2.85
A42: VALID# | B42: 33 | C42: 2022年四川省城乡基础设施建设专项债券（十五期）-2022年四川省政府专项债券（七十一期） | D42: =2.35+0.18 -> 2.53 | G42: 210
A43: VALID# | B43: 34 | C43: 2023年四川省城乡基础设施建设专项债券（三期）-2023年四川省政府专项债券（三期） | D43: 0.45 | G43: 212
A44: VALID# | B44: 35 | C44: 2023年四川省城乡基础设施建设专项债券（二十二期）-2023年四川省政府专项债券（二十二期） | D44: 0.15 | G44: 213
A45: VALID# | B45: 36 | C45: 2023年四川省城乡基础设施建设专项债券（三十七期）-2023年四川省政府专项债券（三十八期） | D45: =0.3+1.4+1.6 -> 3.30 | G45: 229
A46: VALID# | B46: 37 | C46: 2023年四川省城乡基础设施建设专项债券（三十五期）-2023年四川省政府专项债券（三十六期） | D46: 0.79 | G46: 230
A47: VALID# | B47: 38 | C47: 2022年四川省城乡基础设施建设专项债券（三期）-2022年四川省政府专项债券（六期） | D47: 0.50
A48: VALID# | B48: 39 | C48: 2023年四川省城乡基础设施建设专项债券（十六期）-2023年四川省政府专项债券（十六期） | D48: 0.15
A49: VALID# | B49: 40 | C49: 2022年四川省城市更新和产业升级基础设施专项债券（四期）—2022年四川省政府专项债券（五十一期） | D49: 1.46
A50: VALID# | B50: 41 | C50: 2022年四川省社会事业和交通基础设施专项债券（一期）—2022年四川省政府专项债券（四十五期） | D50: =0.98+0.72 -> 1.70
A51: VALID# | B51: 42 | C51: 2023年四川省城乡基础设施建设专项债券（十七期）-2023年四川省政府专项债券（十七期） | D51: 0.20
A52: VALID# | B52: 43 | C52: 2023年四川省城乡基础设施建设专项债券（十五期）-2023年四川省政府专项债券（十五期） | D52: 0.10
A53: VALID# | B53: 44 | C53: 2023年四川省城乡基础设施建设专项债券（三十六期）-2023年四川省政府专项债券（三十七期） | D53: =2.234+0.6 -> 2.83
A54: VALID# | B54: 45 | C54: 2023年四川省城乡基础设施建设专项债券（二十八期）-2023年四川省政府专项债券（二十九期） | D54: =0.65+0.44 -> 1.09
A55: VALID# | B55: 46 | C55: 2023年四川省城乡基础设施建设专项债券（四期）-2023年四川省政府专项债券（四期） | D55: 0.30
A56: VALID# | B56: 47 | C56: 2022年四川省城乡基础设施建设专项债券（一期）-2022年四川省政府专项债券（四期） | D56: 0.08
A57: VALID# | B57: 48 | C57: 2023年四川省城乡基础设施建设专项债券（二十九期）-2023年四川省政府专项债券（三十期） | D57: =1.566+0.1+0.15 -> 1.82
A58: VALID# | B58: 49 | C58: 2022年四川省城乡基础设施建设专项债券（九期）-2022年四川省政府专项债券（二十五期） | D58: 1.50
A59: VALID# | B59: 50 | C59: 2023年四川省城乡基础设施建设专项债券（十一期）-2023年四川省政府专项债券（十一期） | D59: =0.39+0.2 -> 0.59
A60: VALID# | B60: 51 | C60: 2022年四川省乡村振兴和水利建设专项债券（一期）—2022年四川省政府专项债券（四十二期） | D60: =0.12+0.3 -> 0.42
A61: VALID# | B61: 52 | C61: 2022年四川省城乡基础设施建设专项债券（十六期）-2022年四川省政府专项债券（七十二期） | D61: 3.63
A62: VALID# | B62: 53 | C62: 2022年四川省城市更新和产业升级基础设施专项债券（三期）—2022年四川省政府专项债券（五十期） | D62: 0.30
A63: VALID# | B63: 54 | C63: 2022年四川省社会事业和交通基础设施专项债券（五期）—2022年四川省政府专项债券（五十八期） | D63: 0.15
B64: 55 | C64: 2023年四川省城乡基础设施建设专项债券（十二期）-2023年四川省政府专项债券（十二期） | D64: =1.281+0.9 -> 2.18
B65: 56 | C65: 2023年四川省城乡基础设施建设专项债券（五期）-2023年四川省政府专项债券（五期） | D65: =0.819+0.3 -> 1.12
B66: 57 | C66: 2023年四川省城乡基础设施建设专项债券（十期）-2023年四川省政府专项债券（十期） | D66: 0.63
B67: 58 | C67: 2023年四川省城乡基础设施建设专项债券（三十期）-2023年四川省政府专项债券（三十一期） | D67: =0.9+2.34 -> 3.24
B68: 59 | C68: 2019年四川省棚户区改造专项债券（七期）-2019年四川省政府专项债券（六十一期） | D68: 1.00
B69: 60 | C69: 2019年四川省棚户区改造专项债券（十一期）-2019年四川省政府专项债券（九十四期） | D69: 1.00
B70: 61 | C70: 2021年四川省棚户区改造专项债券（一期）-2021年四川省政府专项债券（十期） | D70: 1.25
B71: 62 | C71: 2021年四川省棚户区改造专项债券（六期）-2021年四川省政府专项债券（三十五期） | D71: 0.89
B72: 63 | C72: 2022年四川省城市更新和产业升级基础设施专项债券（七期）—2022年四川省政府专项债券（六十三期） | D72: 0.14
B73: 64 | C73: 2022年四川省棚户区改造专项债券（一期）-2022年四川省政府专项债券（九期） | D73: 0.26
B74: 65 | C74: 2022年四川省城市更新和产业升级基础设施专项债券（五期）—2022年四川省政府专项债券（五十二期） | D74: =0.475+0.24 -> 0.72
B75: 66 | C75: 2022年四川省乡村振兴和水利建设专项债券（六期）—2022年四川省政府专项债券（五十六期） | D75: 0.60
B76: 67 | C76: 2022年四川省城乡基础设施建设专项债券（十七期）-2022年四川省政府专项债券（七十三期） | D76: =0.12+0.5 -> 0.62
B77: 68 | C77: 2021年四川省城乡基础设施建设专项债券（十期）-2021年四川省政府专项债券（二十八期） | D77: 1.18
B78: 69 | C78: 2021年四川省城乡基础设施建设专项债券（五期）-2021年四川省政府专项债券（七期） | D78: 1.50
B79: 70 | C79: 2023年四川省城乡基础设施建设专项债券（二十三期）-2023年四川省政府专项债券（二十三期） | D79: 0.17
B80: 71 | C80: 2022年四川省社会事业和交通基础设施专项债券（三期）—2022年四川省政府专项债券（四十七期） | D80: 0.40
B81: 72 | C81: 2023年四川省城乡基础设施建设专项债券（二十四期）-2023年四川省政府专项债券（二十四期） | D81: 0.50
B82: 73 | C82: 2022年四川省城乡基础设施建设专项债券（十期）-2022年四川省政府专项债券（二十六期） | D82: 0.90
